[Event "Titled Tuesday Blitz May 4 2021"]
[White "San, Thit Lwin"]
[Black "Gahan, M G"]
[WhiteFideId "13001272"]
[BlackFideId "5027373"]
[WhiteElo "2232"]
[BlackElo "2264"]
[Result "1/2-1/2"]
[Round "02"]
[TimeControl "180+1"]
[Date "2021.05.04"]
[WhiteClock "0:00:18"]
[BlackClock "0:00:09"]

1. Nf3 {[%clk 0:02:59]}  Nf6 {[%clk 0:02:59]} 2. c4 {[%clk 0:03:00]}  g6 {[%clk 0:02:59]} 3. Nc3 {[%clk 0:03:00]}  d5 {[%clk 0:02:59]} 4. cxd5 {[%clk 0:02:58]}  Nxd5 {[%clk 0:03:00]} 5. Qa4+ {[%clk 0:02:58]}  Bd7 {[%clk 0:02:58]} 6. Qb3 {[%clk 0:02:53]}  Nb6 {[%clk 0:02:57]} 7. d4 {[%clk 0:02:49]}  Bg7 {[%clk 0:02:57]} 8. e4 {[%clk 0:02:47]}  O-O {[%clk 0:02:53]} 9. Be3 {[%clk 0:02:47]}  Bg4 {[%clk 0:02:48]} 10. Rd1 {[%clk 0:02:36]}  Nc6 {[%clk 0:02:41]} 11. e5 {[%clk 0:02:33]}  Bxf3 {[%clk 0:02:37]} 12. gxf3 {[%clk 0:02:32]}  e6 {[%clk 0:02:36]} 13. h4 {[%clk 0:02:28]}  h5 {[%clk 0:02:35]} 14. Ne4 {[%clk 0:02:21]}  Nd5 {[%clk 0:02:34]} 15. Bg5 {[%clk 0:02:20]}  Qc8 {[%clk 0:02:31]} 16. Bc4 {[%clk 0:02:14]}  Na5 {[%clk 0:02:31]} 17. Qa4 {[%clk 0:02:09]}  Nxc4 {[%clk 0:02:26]} 18. Qxc4 {[%clk 0:02:09]}  a5 {[%clk 0:02:15]} 19. O-O {[%clk 0:01:58]}  Ra6 {[%clk 0:02:12]} 20. Rc1 {[%clk 0:01:54]}  Rc6 {[%clk 0:02:12]} 21. Qa4 {[%clk 0:01:49]}  Rxc1 {[%clk 0:02:00]} 22. Rxc1 {[%clk 0:01:48]}  b6 {[%clk 0:01:59]} 23. Qc4 {[%clk 0:01:25]}  Qb7 {[%clk 0:01:55]} 24. a3 {[%clk 0:01:21]}  Qc8 {[%clk 0:01:32]} 25. b4 {[%clk 0:01:11]}  axb4 {[%clk 0:01:31]} 26. axb4 {[%clk 0:01:11]}  Qd7 {[%clk 0:01:30]} 27. Qc6 {[%clk 0:01:01]}  Qxc6 {[%clk 0:01:27]} 28. Rxc6 {[%clk 0:01:00]}  Ra8 {[%clk 0:01:27]} 29. Nc3 {[%clk 0:00:50]}  Nxb4 {[%clk 0:01:14]} 30. Rxc7 {[%clk 0:00:48]}  Ra3 {[%clk 0:01:10]} 31. Kg2 {[%clk 0:00:43]}  Rb3 {[%clk 0:00:55]} 32. Ne4 {[%clk 0:00:40]}  Nd5 {[%clk 0:00:51]} 33. Rb7 {[%clk 0:00:35]}  Rd3 {[%clk 0:00:43]} 34. Nd6 {[%clk 0:00:35]}  Rxd4 {[%clk 0:00:27]} 35. Nxf7 {[%clk 0:00:35]}  b5 {[%clk 0:00:20]} 36. Nd8 {[%clk 0:00:31]}  Nf4+ {[%clk 0:00:19]} 37. Bxf4 {[%clk 0:00:30]}  Rxd8 {[%clk 0:00:19]} 38. Rxb5 {[%clk 0:00:27]}  Rd4 {[%clk 0:00:19]} 39. Bg5 {[%clk 0:00:27]}  Rd1 {[%clk 0:00:16]} 40. f4 {[%clk 0:00:27]}  Rd3 {[%clk 0:00:16]} 41. Rb7 {[%clk 0:00:26]}  Rc3 {[%clk 0:00:14]} 42. Re7 {[%clk 0:00:25]}  Rc6 {[%clk 0:00:14]} 43. Bf6 {[%clk 0:00:23]}  Bf8 {[%clk 0:00:15]} 44. Re8 {[%clk 0:00:23]}  Kf7 {[%clk 0:00:15]} 45. Ra8 {[%clk 0:00:22]}  Rc4 {[%clk 0:00:15]} 46. Kf3 {[%clk 0:00:22]}  Rc3+ {[%clk 0:00:15]} 47. Ke4 {[%clk 0:00:22]}  Rc4+ {[%clk 0:00:15]} 48. Ke3 {[%clk 0:00:21]}  Rc3+ {[%clk 0:00:15]} 49. Ke2 {[%clk 0:00:21]}  Rc2+ {[%clk 0:00:15]} 50. Kf1 {[%clk 0:00:21]}  Rc4 {[%clk 0:00:15]} 51. Bg5 {[%clk 0:00:20]}  Bc5 {[%clk 0:00:14]} 52. Ra2 {[%clk 0:00:17]}  Rc1+ {[%clk 0:00:13]} 53. Kg2 {[%clk 0:00:17]}  Rc4 {[%clk 0:00:11]} 54. Rd2 {[%clk 0:00:17]}  Bd4 {[%clk 0:00:10]} 55. Kf3 {[%clk 0:00:16]}  Ke8 {[%clk 0:00:09]} 56. Rd3 {[%clk 0:00:15]}  Kf7 {[%clk 0:00:07]} 57. Ke2 {[%clk 0:00:14]}  Rc2+ {[%clk 0:00:07]} 58. Rd2 {[%clk 0:00:14]}  Rxd2+ {[%clk 0:00:07]} 59. Kxd2 {[%clk 0:00:14]}  Bxf2 {[%clk 0:00:08]} 60. Ke2 {[%clk 0:00:15]}  Bd4 {[%clk 0:00:08]} 61. Kf3 {[%clk 0:00:15]}  Bb2 {[%clk 0:00:08]} 62. Ke4 {[%clk 0:00:16]}  Bc1 {[%clk 0:00:09]} 63. Kf3 {[%clk 0:00:17]}  Bb2 {[%clk 0:00:09]} 64. Bf6 {[%clk 0:00:17]}  Bc1 {[%clk 0:00:09]} 65. Bg5 {[%clk 0:00:18]}  Bb2 {[%clk 0:00:09]} 1/2-1/2


[Site "https://www.chess.com"]

[Event "Titled Tuesday Blitz May 4 2021"]
[White "Sargsyan, Anna M."]
[Black "Jobava, Baadur"]
[WhiteFideId "13308130"]
[BlackFideId "13601520"]
[WhiteElo "2263"]
[BlackElo "2748"]
[Result "0-1"]
[Round "02"]
[TimeControl "180+1"]
[Date "2021.05.04"]
[WhiteClock "0:02:14"]
[BlackClock "0:02:26"]

1. d4 {[%clk 0:02:58]}  d5 {[%clk 0:02:59]} 2. c4 {[%clk 0:02:58]}  c6 {[%clk 0:02:59]} 3. Nf3 {[%clk 0:02:57]}  Nf6 {[%clk 0:02:59]} 4. Nc3 {[%clk 0:02:57]}  dxc4 {[%clk 0:02:59]} 5. a4 {[%clk 0:02:58]}  a5 {[%clk 0:03:00]} 6. e3 {[%clk 0:02:53]}  Bg4 {[%clk 0:03:00]} 7. Bxc4 {[%clk 0:02:54]}  e6 {[%clk 0:03:00]} 8. h3 {[%clk 0:02:53]}  Bh5 {[%clk 0:03:00]} 9. g4 {[%clk 0:02:53]}  Bg6 {[%clk 0:03:00]} 10. Ne5 {[%clk 0:02:53]}  Nbd7 {[%clk 0:03:00]} 11. h4 {[%clk 0:02:45]}  Nxe5 {[%clk 0:02:53]} 12. dxe5 {[%clk 0:02:46]}  Qxd1+ {[%clk 0:02:53]} 13. Nxd1 {[%clk 0:02:46]}  Nxg4 {[%clk 0:02:54]} 14. f4 {[%clk 0:02:36]}  Bb4+ {[%clk 0:02:35]} 15. Ke2 {[%clk 0:02:20]}  Bh5 {[%clk 0:02:30]} 16. Kf1 {[%clk 0:02:20]}  Nxe5 {[%clk 0:02:26]} 17. fxe5 {[%clk 0:02:14]}  Bxd1 {[%clk 0:02:26]} 0-1


[Site "https://www.chess.com"]

[Event "Titled Tuesday Blitz May 4 2021"]
[White "Saucey, Michel"]
[Black "Korkmaz, Necmettin"]
[WhiteFideId "601845"]
[BlackFideId "6303285"]
[WhiteElo "2253"]
[BlackElo "2094"]
[Result "0-1"]
[Round "02"]
[TimeControl "180+1"]
[Date "2021.05.04"]
[WhiteClock "0:00:04"]
[BlackClock "0:00:45"]

1. e4 {[%clk 0:03:00]}  e5 {[%clk 0:02:52]} 2. Nf3 {[%clk 0:02:59]}  Nc6 {[%clk 0:02:52]} 3. Bb5 {[%clk 0:02:59]}  Nf6 {[%clk 0:02:47]} 4. O-O {[%clk 0:02:57]}  Nxe4 {[%clk 0:02:47]} 5. Re1 {[%clk 0:02:56]}  Nd6 {[%clk 0:02:46]} 6. Nxe5 {[%clk 0:02:57]}  Be7 {[%clk 0:02:38]} 7. Bf1 {[%clk 0:02:39]}  Nxe5 {[%clk 0:02:35]} 8. Rxe5 {[%clk 0:02:40]}  O-O {[%clk 0:02:35]} 9. Nc3 {[%clk 0:02:39]}  Bf6 {[%clk 0:02:32]} 10. Re1 {[%clk 0:02:36]}  c6 {[%clk 0:02:26]} 11. d4 {[%clk 0:02:36]}  Nf5 {[%clk 0:02:24]} 12. d5 {[%clk 0:02:33]}  d6 {[%clk 0:02:03]} 13. Ne4 {[%clk 0:02:11]}  c5 {[%clk 0:01:52]} 14. Bd3 {[%clk 0:01:53]}  Bd7 {[%clk 0:01:46]} 15. c3 {[%clk 0:01:37]}  Re8 {[%clk 0:01:43]} 16. Qf3 {[%clk 0:01:33]}  Nh4 {[%clk 0:01:38]} 17. Nxf6+ {[%clk 0:01:32]}  Qxf6 {[%clk 0:01:38]} 18. Rxe8+ {[%clk 0:01:19]}  Rxe8 {[%clk 0:01:34]} 19. Qd1 {[%clk 0:00:54]}  c4 {[%clk 0:00:58]} 20. Bxc4 {[%clk 0:00:34]}  Qg6 {[%clk 0:00:58]} 21. g3 {[%clk 0:00:20]}  Re1+ {[%clk 0:00:57]} 22. Qxe1 {[%clk 0:00:17]}  Nf3+ {[%clk 0:00:57]} 23. Kf1 {[%clk 0:00:18]}  Bh3+ {[%clk 0:00:57]} 24. Ke2 {[%clk 0:00:16]}  Qe4+ {[%clk 0:00:55]} 25. Be3 {[%clk 0:00:14]}  Nxe1 {[%clk 0:00:56]} 26. Rxe1 {[%clk 0:00:13]}  Qxc4+ {[%clk 0:00:56]} 27. Kf3 {[%clk 0:00:11]}  Qxd5+ {[%clk 0:00:55]} 28. Ke2 {[%clk 0:00:11]}  Bg4+ {[%clk 0:00:54]} 29. f3 {[%clk 0:00:09]}  Qxf3+ {[%clk 0:00:52]} 30. Kd2 {[%clk 0:00:09]}  Qg2+ {[%clk 0:00:50]} 31. Kc1 {[%clk 0:00:08]}  Bf5 {[%clk 0:00:48]} 32. Bd2 {[%clk 0:00:08]}  f6 {[%clk 0:00:48]} 33. h4 {[%clk 0:00:06]}  Qxg3 {[%clk 0:00:47]} 34. Re3 {[%clk 0:00:03]}  Qg1+ {[%clk 0:00:46]} 35. Be1 {[%clk 0:00:04]}  Qxe3+ {[%clk 0:00:45]} 0-1


[Site "https://www.chess.com"]

[Event "Titled Tuesday Blitz May 4 2021"]
[White "Schut, Lisa"]
[Black "Ohanyan, Emin"]
[WhiteFideId "1019481"]
[BlackFideId "13312022"]
[WhiteElo "2234"]
[BlackElo "1648"]
[Result "0-1"]
[Round "02"]
[TimeControl "180+1"]
[Date "2021.05.04"]
[WhiteClock "0:00:05"]
[BlackClock "0:00:04"]

1. e4 {[%clk 0:03:00]}  e5 {[%clk 0:02:57]} 2. Nf3 {[%clk 0:03:01]}  Nc6 {[%clk 0:02:57]} 3. Bc4 {[%clk 0:03:01]}  Nf6 {[%clk 0:02:57]} 4. d4 {[%clk 0:03:00]}  exd4 {[%clk 0:02:58]} 5. e5 {[%clk 0:03:01]}  d5 {[%clk 0:02:57]} 6. Bb5 {[%clk 0:03:01]}  Ne4 {[%clk 0:02:57]} 7. Nxd4 {[%clk 0:03:02]}  Bc5 {[%clk 0:02:57]} 8. Be3 {[%clk 0:03:00]}  O-O {[%clk 0:02:55]} 9. Bxc6 {[%clk 0:02:53]}  bxc6 {[%clk 0:02:56]} 10. Nd2 {[%clk 0:02:52]}  Qe8 {[%clk 0:01:49]} 11. O-O {[%clk 0:01:56]}  Bb6 {[%clk 0:01:19]} 12. Nxe4 {[%clk 0:01:36]}  dxe4 {[%clk 0:01:20]} 13. Qh5 {[%clk 0:01:34]}  f5 {[%clk 0:01:04]} 14. Qxe8 {[%clk 0:01:27]}  Rxe8 {[%clk 0:01:05]} 15. Nxc6 {[%clk 0:01:07]}  Bb7 {[%clk 0:00:47]} 16. Nd4 {[%clk 0:00:47]}  Rxe5 {[%clk 0:00:45]} 17. c4 {[%clk 0:00:44]}  f4 {[%clk 0:00:40]} 18. Bxf4 {[%clk 0:00:37]}  Bxd4 {[%clk 0:00:39]} 19. Bxe5 {[%clk 0:00:38]}  Bxe5 {[%clk 0:00:37]} 20. Rab1 {[%clk 0:00:38]}  Bc6 {[%clk 0:00:31]} 21. Rfe1 {[%clk 0:00:33]}  Rb8 {[%clk 0:00:26]} 22. b3 {[%clk 0:00:30]}  a5 {[%clk 0:00:22]} 23. Kf1 {[%clk 0:00:31]}  Bd4 {[%clk 0:00:18]} 24. Rbd1 {[%clk 0:00:29]}  Bc5 {[%clk 0:00:17]} 25. Re2 {[%clk 0:00:25]}  Ra8 {[%clk 0:00:10]} 26. Red2 {[%clk 0:00:25]}  Kf7 {[%clk 0:00:07]} 27. Rd8 {[%clk 0:00:24]}  Ra7 {[%clk 0:00:06]} 28. Rh8 {[%clk 0:00:22]}  h6 {[%clk 0:00:05]} 29. Rb8 {[%clk 0:00:22]}  Ke6 {[%clk 0:00:03]} 30. Rg8 {[%clk 0:00:20]}  Kf7 {[%clk 0:00:03]} 31. Rb8 {[%clk 0:00:20]}  Ra6 {[%clk 0:00:02]} 32. Rdd8 {[%clk 0:00:20]}  Be7 {[%clk 0:00:02]} 33. Rdc8 {[%clk 0:00:17]}  Ke6 {[%clk 0:00:02]} 34. Ke2 {[%clk 0:00:13]}  Bd7 {[%clk 0:00:02]} 35. Rg8 {[%clk 0:00:12]}  Bf6 {[%clk 0:00:02]} 36. Ke3 {[%clk 0:00:11]}  a4 {[%clk 0:00:02]} 37. Kxe4 {[%clk 0:00:11]}  a3 {[%clk 0:00:01]} 38. b4 {[%clk 0:00:09]}  Rd6 {[%clk 0:00:02]} 39. c5 {[%clk 0:00:09]}  Rd2 {[%clk 0:00:02]} 40. Ra8 {[%clk 0:00:07]}  Bc6+ {[%clk 0:00:02]} 41. Ke3 {[%clk 0:00:07]}  Rxa2 {[%clk 0:00:02]} 42. Ra6 {[%clk 0:00:07]}  Kd5 {[%clk 0:00:02]} 43. Rb8 {[%clk 0:00:05]}  Bd7 {[%clk 0:00:01]} 44. Ra5 {[%clk 0:00:04]}  Bd4+ {[%clk 0:00:02]} 45. Kf3 {[%clk 0:00:04]}  Kc4 {[%clk 0:00:02]} 46. Rb7 {[%clk 0:00:03]}  Bc6+ {[%clk 0:00:02]} 47. Kg3 {[%clk 0:00:02]}  Bxb7 {[%clk 0:00:03]} 48. f3 {[%clk 0:00:03]}  Bc6 {[%clk 0:00:03]} 49. b5 {[%clk 0:00:03]}  Bxb5 {[%clk 0:00:03]} 50. Ra7 {[%clk 0:00:04]}  Bxc5 {[%clk 0:00:04]} 51. Rxc7 {[%clk 0:00:04]}  Rxg2+ {[%clk 0:00:03]} 52. Kxg2 {[%clk 0:00:03]}  a2 {[%clk 0:00:03]} 53. Rxg7 {[%clk 0:00:03]}  a1=Q {[%clk 0:00:04]} 54. Kg3 {[%clk 0:00:04]}  Qxg7+ {[%clk 0:00:03]} 55. Kh3 {[%clk 0:00:05]}  Bd7+ {[%clk 0:00:03]} 56. Kh4 {[%clk 0:00:05]}  Qg5# {[%clk 0:00:04]} 0-1


[Site "https://www.chess.com"]

[Event "Titled Tuesday Blitz May 4 2021"]
[White "Shahade, Gregory"]
[Black "Kalajzic, Ivan"]
[WhiteFideId "2009064"]
[BlackFideId "14506378"]
[WhiteElo "2644"]
[BlackElo "2163"]
[Result "1/2-1/2"]
[Round "02"]
[TimeControl "180+1"]
[Date "2021.05.04"]
[WhiteClock "0:01:50"]
[BlackClock "0:02:06"]

1. e4 {[%clk 0:03:00]}  Nc6 {[%clk 0:02:58]} 2. Nf3 {[%clk 0:03:00]}  d6 {[%clk 0:02:58]} 3. d4 {[%clk 0:03:00]}  Bg4 {[%clk 0:02:58]} 4. Be3 {[%clk 0:02:55]}  Nf6 {[%clk 0:02:57]} 5. Nc3 {[%clk 0:02:55]}  g6 {[%clk 0:02:56]} 6. h3 {[%clk 0:02:43]}  Bxf3 {[%clk 0:02:48]} 7. Qxf3 {[%clk 0:02:44]}  Bg7 {[%clk 0:02:47]} 8. g3 {[%clk 0:02:33]}  O-O {[%clk 0:02:46]} 9. Bg2 {[%clk 0:02:32]}  e5 {[%clk 0:02:47]} 10. dxe5 {[%clk 0:02:31]}  Nxe5 {[%clk 0:02:44]} 11. Qe2 {[%clk 0:02:31]}  c6 {[%clk 0:02:38]} 12. O-O {[%clk 0:02:31]}  Re8 {[%clk 0:02:35]} 13. Rad1 {[%clk 0:02:30]}  Qc7 {[%clk 0:02:27]} 14. Rfe1 {[%clk 0:02:30]}  b5 {[%clk 0:02:21]} 15. a3 {[%clk 0:02:29]}  Nc4 {[%clk 0:02:19]} 16. Bc1 {[%clk 0:02:27]}  Nd7 {[%clk 0:02:13]} 17. Rd3 {[%clk 0:01:50]}  Nc5 {[%clk 0:02:06]} 1/2-1/2


[Site "https://www.chess.com"]

[Event "Titled Tuesday Blitz May 4 2021"]
[White "Shamsi, Mohammadhossein"]
[Black "Guzman Moneo, Alberto"]
[WhiteFideId "12507326"]
[BlackFideId "2209616"]
[WhiteElo "2203"]
[BlackElo "2157"]
[Result "1-0"]
[Round "02"]
[TimeControl "180+1"]
[Date "2021.05.04"]
[WhiteClock "0:02:00"]
[BlackClock "0:00:31"]

1. d4 {[%clk 0:03:00]}  Nf6 {[%clk 0:02:56]} 2. Nf3 {[%clk 0:03:01]}  c5 {[%clk 0:02:56]} 3. d5 {[%clk 0:03:00]}  g6 {[%clk 0:02:56]} 4. c4 {[%clk 0:03:00]}  b5 {[%clk 0:02:55]} 5. cxb5 {[%clk 0:03:01]}  a6 {[%clk 0:02:53]} 6. bxa6 {[%clk 0:03:01]}  d6 {[%clk 0:02:53]} 7. Nc3 {[%clk 0:03:02]}  Bxa6 {[%clk 0:02:53]} 8. g3 {[%clk 0:03:03]}  Nbd7 {[%clk 0:02:51]} 9. Bg2 {[%clk 0:03:03]}  Nb6 {[%clk 0:02:50]} 10. O-O {[%clk 0:03:04]}  Bg7 {[%clk 0:02:49]} 11. Qc2 {[%clk 0:03:01]}  Bc4 {[%clk 0:02:46]} 12. Rd1 {[%clk 0:03:00]}  Nbxd5 {[%clk 0:02:37]} 13. Nd2 {[%clk 0:02:53]}  Nxc3 {[%clk 0:02:24]} 14. Qxc3 {[%clk 0:02:44]}  Bxe2 {[%clk 0:02:03]} 15. Bc6+ {[%clk 0:02:43]}  Kf8 {[%clk 0:02:00]} 16. Re1 {[%clk 0:02:43]}  Bg4 {[%clk 0:01:50]} 17. Bxa8 {[%clk 0:02:41]}  Qxa8 {[%clk 0:01:51]} 18. f3 {[%clk 0:02:39]}  Ne4 {[%clk 0:01:28]} 19. Qd3 {[%clk 0:02:24]}  Bd4+ {[%clk 0:01:22]} 20. Kg2 {[%clk 0:02:24]}  Nxd2 {[%clk 0:01:17]} 21. Bxd2 {[%clk 0:02:22]}  Bxb2 {[%clk 0:01:02]} 22. Rab1 {[%clk 0:02:20]}  Bg7 {[%clk 0:00:50]} 23. Qe4 {[%clk 0:02:04]}  Qxe4 {[%clk 0:00:33]} 24. Rb8+ {[%clk 0:02:00]}  Bc8 {[%clk 0:00:31]} 25. Rxc8# {[%clk 0:02:00]} 1-0


[Site "https://www.chess.com"]

[Event "Titled Tuesday Blitz May 4 2021"]
[White "Shtyka, Sergey"]
[Black "Ismayil, Malak"]
[WhiteFideId "4138465"]
[BlackFideId "13412604"]
[WhiteElo "2102"]
[BlackElo "1879"]
[Result "1-0"]
[Round "02"]
[TimeControl "180+1"]
[Date "2021.05.04"]
[WhiteClock "0:00:06"]
[BlackClock "0:00:02"]

1. e4 {[%clk 0:02:56]}  e5 {[%clk 0:02:59]} 2. Nf3 {[%clk 0:02:56]}  Nc6 {[%clk 0:02:59]} 3. Nc3 {[%clk 0:02:55]}  Nf6 {[%clk 0:02:58]} 4. Bb5 {[%clk 0:02:53]}  d6 {[%clk 0:02:57]} 5. d4 {[%clk 0:02:52]}  exd4 {[%clk 0:02:57]} 6. Qxd4 {[%clk 0:02:52]}  Bd7 {[%clk 0:02:56]} 7. Bxc6 {[%clk 0:02:52]}  Bxc6 {[%clk 0:02:57]} 8. Bg5 {[%clk 0:02:51]}  Be7 {[%clk 0:02:57]} 9. O-O-O {[%clk 0:02:51]}  h6 {[%clk 0:02:45]} 10. Bh4 {[%clk 0:02:49]}  O-O {[%clk 0:02:10]} 11. Rhe1 {[%clk 0:02:43]}  Nd7 {[%clk 0:02:05]} 12. Bxe7 {[%clk 0:02:38]}  Qxe7 {[%clk 0:02:06]} 13. g3 {[%clk 0:02:23]}  Qf6 {[%clk 0:01:58]} 14. Re3 {[%clk 0:02:08]}  Rfe8 {[%clk 0:01:45]} 15. Qd2 {[%clk 0:01:53]}  Rad8 {[%clk 0:01:39]} 16. Nd4 {[%clk 0:01:50]}  Ne5 {[%clk 0:01:37]} 17. Qe2 {[%clk 0:01:45]}  Nd7 {[%clk 0:01:04]} 18. f4 {[%clk 0:01:32]}  Nc5 {[%clk 0:01:01]} 19. a3 {[%clk 0:01:10]}  Re7 {[%clk 0:00:46]} 20. Nf5 {[%clk 0:01:02]}  Ree8 {[%clk 0:00:25]} 21. Nd4 {[%clk 0:00:56]}  Re7 {[%clk 0:00:24]} 22. Kb1 {[%clk 0:00:52]}  Rde8 {[%clk 0:00:23]} 23. Nf5 {[%clk 0:00:50]}  Re6 {[%clk 0:00:23]} 24. Nd4 {[%clk 0:00:44]}  R6e7 {[%clk 0:00:22]} 25. Nxc6 {[%clk 0:00:39]}  bxc6 {[%clk 0:00:22]} 26. Re1 {[%clk 0:00:39]}  Qd4 {[%clk 0:00:19]} 27. Rd1 {[%clk 0:00:36]}  Qf6 {[%clk 0:00:18]} 28. Qc4 {[%clk 0:00:33]}  Qe6 {[%clk 0:00:10]} 29. Qxe6 {[%clk 0:00:29]}  Rxe6 {[%clk 0:00:10]} 30. Rde1 {[%clk 0:00:29]}  f5 {[%clk 0:00:10]} 31. e5 {[%clk 0:00:28]}  dxe5 {[%clk 0:00:09]} 32. Rxe5 {[%clk 0:00:28]}  Rxe5 {[%clk 0:00:09]} 33. Rxe5 {[%clk 0:00:28]}  Rxe5 {[%clk 0:00:09]} 34. fxe5 {[%clk 0:00:29]}  Kf7 {[%clk 0:00:09]} 35. b4 {[%clk 0:00:27]}  Nd7 {[%clk 0:00:09]} 36. Na4 {[%clk 0:00:23]}  Nxe5 {[%clk 0:00:09]} 37. Nc5 {[%clk 0:00:21]}  Nc4 {[%clk 0:00:09]} 38. Ka2 {[%clk 0:00:20]}  Ne3 {[%clk 0:00:09]} 39. Kb3 {[%clk 0:00:19]}  Nf1 {[%clk 0:00:10]} 40. Na6 {[%clk 0:00:15]}  Nxh2 {[%clk 0:00:09]} 41. Nxc7 {[%clk 0:00:15]}  Nf1 {[%clk 0:00:09]} 42. a4 {[%clk 0:00:14]}  Nxg3 {[%clk 0:00:09]} 43. b5 {[%clk 0:00:11]}  cxb5 {[%clk 0:00:09]} 44. Nxb5 {[%clk 0:00:10]}  a6 {[%clk 0:00:09]} 45. Nd6+ {[%clk 0:00:09]}  Ke6 {[%clk 0:00:09]} 46. Nc4 {[%clk 0:00:10]}  f4 {[%clk 0:00:09]} 47. Nd2 {[%clk 0:00:08]}  Nf5 {[%clk 0:00:07]} 48. Kb4 {[%clk 0:00:07]}  g5 {[%clk 0:00:04]} 49. Ka5 {[%clk 0:00:08]}  Nd4 {[%clk 0:00:05]} 50. Kxa6 {[%clk 0:00:07]}  Nxc2 {[%clk 0:00:05]} 51. Kb5 {[%clk 0:00:08]}  Nd4+ {[%clk 0:00:05]} 52. Kb6 {[%clk 0:00:08]}  Nf5 {[%clk 0:00:03]} 53. a5 {[%clk 0:00:08]}  Ne7 {[%clk 0:00:03]} 54. a6 {[%clk 0:00:08]}  g4 {[%clk 0:00:03]} 55. Kb7 {[%clk 0:00:07]}  f3 {[%clk 0:00:02]} 56. a7 {[%clk 0:00:07]}  f2 {[%clk 0:00:03]} 57. a8=Q {[%clk 0:00:07]}  f1=Q {[%clk 0:00:03]} 58. Nxf1 {[%clk 0:00:06]}  Nf5 {[%clk 0:00:03]} 59. Qa2+ {[%clk 0:00:06]}  Kf6 {[%clk 0:00:03]} 60. Ka8 {[%clk 0:00:07]}  Kg5 {[%clk 0:00:03]} 61. Qd2+ {[%clk 0:00:06]}  Kg6 {[%clk 0:00:03]} 62. Qf4 {[%clk 0:00:06]}  h5 {[%clk 0:00:03]} 63. Ng3 {[%clk 0:00:06]}  Nxg3 {[%clk 0:00:03]} 64. Qxg3 {[%clk 0:00:07]}  Kg5 {[%clk 0:00:04]} 65. Qe5+ {[%clk 0:00:06]}  Kh4 {[%clk 0:00:04]} 66. Qf4 {[%clk 0:00:06]}  Kh3 {[%clk 0:00:04]} 67. Qf1+ {[%clk 0:00:06]}  Kh4 {[%clk 0:00:03]} 68. Qh1+ {[%clk 0:00:05]}  Kg5 {[%clk 0:00:03]} 69. Qc1+ {[%clk 0:00:04]}  Kh4 {[%clk 0:00:03]} 70. Qe1+ {[%clk 0:00:05]}  Kg5 {[%clk 0:00:03]} 71. Qg3 {[%clk 0:00:04]}  h4 {[%clk 0:00:03]} 72. Qe5+ {[%clk 0:00:04]}  Kg6 {[%clk 0:00:03]} 73. Qf4 {[%clk 0:00:04]}  g3 {[%clk 0:00:03]} 74. Qg4+ {[%clk 0:00:04]}  Kf6 {[%clk 0:00:02]} 75. Qxh4+ {[%clk 0:00:05]}  Kf5 {[%clk 0:00:02]} 76. Qxg3 {[%clk 0:00:06]} 1-0


[Site "https://www.chess.com"]

[Event "Titled Tuesday Blitz May 4 2021"]
[White "Shuvalov, Evgenij"]
[Black "Elissalt Cardenas, Hector"]
[WhiteFideId "4187237"]
[BlackFideId "3500632"]
[WhiteElo "2163"]
[BlackElo "2207"]
[Result "1-0"]
[Round "02"]
[TimeControl "180+1"]
[Date "2021.05.04"]
[WhiteClock "0:00:08"]
[BlackClock "0:00:06"]

1. Nf3 {[%clk 0:02:49]}  d5 {[%clk 0:02:56]} 2. c4 {[%clk 0:02:49]}  e6 {[%clk 0:02:54]} 3. g3 {[%clk 0:02:49]}  Nf6 {[%clk 0:02:53]} 4. Bg2 {[%clk 0:02:48]}  Be7 {[%clk 0:02:53]} 5. b3 {[%clk 0:02:48]}  d4 {[%clk 0:02:47]} 6. O-O {[%clk 0:02:46]}  c5 {[%clk 0:02:45]} 7. e3 {[%clk 0:02:45]}  Nc6 {[%clk 0:02:44]} 8. exd4 {[%clk 0:02:45]}  cxd4 {[%clk 0:02:44]} 9. Re1 {[%clk 0:02:44]}  O-O {[%clk 0:02:37]} 10. d3 {[%clk 0:02:42]}  a5 {[%clk 0:02:19]} 11. Na3 {[%clk 0:02:31]}  Bb4 {[%clk 0:02:04]} 12. Re2 {[%clk 0:02:30]}  Qd6 {[%clk 0:01:58]} 13. Nb5 {[%clk 0:02:27]}  Qd8 {[%clk 0:01:45]} 14. Bf4 {[%clk 0:02:24]}  Nh5 {[%clk 0:01:27]} 15. Bc7 {[%clk 0:02:18]}  Qd7 {[%clk 0:01:25]} 16. a3 {[%clk 0:02:13]}  Bc5 {[%clk 0:01:24]} 17. Ne5 {[%clk 0:02:09]}  Qe8 {[%clk 0:01:22]} 18. Nd6 {[%clk 0:01:06]}  Qe7 {[%clk 0:01:11]} 19. Nb5 {[%clk 0:00:55]}  Na7 {[%clk 0:01:04]} 20. b4 {[%clk 0:00:39]}  Nxb5 {[%clk 0:01:01]} 21. cxb5 {[%clk 0:00:38]}  axb4 {[%clk 0:00:53]} 22. axb4 {[%clk 0:00:36]}  Rxa1 {[%clk 0:00:53]} 23. Qxa1 {[%clk 0:00:37]}  Qxc7 {[%clk 0:00:52]} 24. bxc5 {[%clk 0:00:36]}  Qxc5 {[%clk 0:00:52]} 25. Nf3 {[%clk 0:00:33]}  Bd7 {[%clk 0:00:44]} 26. Re5 {[%clk 0:00:32]}  Qc3 {[%clk 0:00:41]} 27. Qxc3 {[%clk 0:00:30]}  dxc3 {[%clk 0:00:41]} 28. Rxh5 {[%clk 0:00:31]}  c2 {[%clk 0:00:39]} 29. Rc5 {[%clk 0:00:26]}  Rc8 {[%clk 0:00:39]} 30. Rxc2 {[%clk 0:00:19]}  Rxc2 {[%clk 0:00:40]} 31. Ne5 {[%clk 0:00:19]}  Bxb5 {[%clk 0:00:39]} 32. Bxb7 {[%clk 0:00:18]}  Re2 {[%clk 0:00:38]} 33. d4 {[%clk 0:00:16]}  Re1+ {[%clk 0:00:37]} 34. Kg2 {[%clk 0:00:16]}  Rd1 {[%clk 0:00:37]} 35. Nf3 {[%clk 0:00:15]}  Be2 {[%clk 0:00:36]} 36. Ne5 {[%clk 0:00:13]}  Bb5 {[%clk 0:00:32]} 37. d5 {[%clk 0:00:10]}  exd5 {[%clk 0:00:31]} 38. Kf3 {[%clk 0:00:10]}  f6 {[%clk 0:00:29]} 39. Ng4 {[%clk 0:00:09]}  Re1 {[%clk 0:00:19]} 40. Bxd5+ {[%clk 0:00:08]}  Kf8 {[%clk 0:00:16]} 41. Ne3 {[%clk 0:00:09]}  Be2+ {[%clk 0:00:14]} 42. Kg2 {[%clk 0:00:09]}  Ke7 {[%clk 0:00:10]} 43. h4 {[%clk 0:00:07]}  g6 {[%clk 0:00:10]} 44. Be4 {[%clk 0:00:07]}  f5 {[%clk 0:00:09]} 45. Bc2 {[%clk 0:00:07]}  Rc1 {[%clk 0:00:08]} 46. Bb3 {[%clk 0:00:07]}  Kf6 {[%clk 0:00:08]} 47. Bd5 {[%clk 0:00:06]}  h6 {[%clk 0:00:08]} 48. Bf3 {[%clk 0:00:06]}  Bxf3+ {[%clk 0:00:06]} 49. Kxf3 {[%clk 0:00:07]}  g5 {[%clk 0:00:07]} 50. hxg5+ {[%clk 0:00:08]}  hxg5 {[%clk 0:00:07]} 51. Kg2 {[%clk 0:00:08]}  Rc3 {[%clk 0:00:07]} 52. Nd5+ {[%clk 0:00:08]}  Ke5 {[%clk 0:00:06]} 53. Nxc3 {[%clk 0:00:08]}  f4 {[%clk 0:00:06]} 54. g4 {[%clk 0:00:08]} 1-0


[Site "https://www.chess.com"]